fUST/lending_fUST_20250204
["ID","MTS","AMOUNT","RATE_DAILY","PERIOD"]
[351589035,1738651840756,-8194.32,0.00016712,2]
[351589036,1738651840766,-3818.88,0.00016712,2]
[351589037,1738651840775,-500.0,0.00016712,2]
[351589038,1738651840785,-526.4,0.00016712,2]
[351589039,1738651840794,-1537.3,0.00016712,2]
[351589040,1738651840803,-431.55704084,0.00016712,2]
[351589041,1738651840813,-1271.55,0.00016712,2]
[351589042,1738651840822,-646.51,0.00016712,2]
[351589043,1738651840831,-9137.08,0.00016712,2]
[351589044,1738651840840,-596.01,0.00016712,2]
[351589045,1738651840849,-4111.97,0.00016712,2]
[351589046,1738651840858,-1000.45,0.00016712,2]
[351589047,1738651840867,-500.0,0.00016712,2]
[351589048,1738651840877,-839.24,0.00016712,2]
[351589049,1738651840886,-931.7,0.00016712,2]
[351589050,1738651840895,-1163.46,0.00016712,2]
[351589051,1738651840905,-384.95199955,0.00016712,2]
[351589052,1738651840914,-23370.66,0.00016712,2]
[351589053,1738651840923,-500.0,0.00016712,2]
[351589054,1738651840932,-500.0,0.00016712,2]
[351589055,1738651840941,-1603.39,0.00016712,2]
[351589056,1738651840950,-500.0,0.00016712,2]
[351589057,1738651840959,-1346.33,0.00016712,2]
[351589058,1738651840969,-500.0,0.00016712,2]
[351589059,1738651840978,-7506.04,0.00016712,2]
[351589060,1738651840987,-500.0,0.00016712,2]
[351589061,1738651841109,-798.26,0.00016712,2]
[351589062,1738651841118,-500.0,0.00016712,2]
[351589063,1738651841127,-507.8949998,0.00016712,2]
[351589064,1738651841137,-2370.99,0.00016712,2]
[351589065,1738651841147,-2913.7,0.00016712,2]
[351589066,1738651841156,-1726.05,0.00016712,2]
[351589067,1738651841165,-500.0,0.00016712,2]
[351589068,1738651841175,-1580.38,0.00016712,2]
[351589069,1738651841185,-2967.46,0.00016712,2]
[351589070,1738651841194,-599.86,0.00016712,2]
[351589071,1738651841203,-500.0,0.00016712,2]
[351589072,1738651841213,-500.0,0.00016712,2]
[351589073,1738651841222,-1636.2,0.00016712,2]
[351589074,1738651841232,-500.0,0.00016712,2]
[351589075,1738651841243,-1249.68,0.00016712,2]
[351589076,1738651841252,-1498.93,0.00016712,2]
[351589077,1738651841261,-500.0,0.00016712,2]
[351589078,1738651841271,-1182.05,0.00016712,2]
[351589079,1738651841280,-373.28532646,0.00016712,2]
[351589080,1738651841289,-500.0,0.00016712,2]
[351589081,1738651841298,-500.0,0.00016712,2]
[351589082,1738651841307,-528.02,0.00016712,2]
[351589083,1738651841317,-500.0,0.00016712,2]
[351589084,1738651841326,-500.0,0.00016712,2]
[351589085,1738651841335,-420.0,0.0001677,2]
[351589086,1738651841344,-771.87967296,0.00016784,2]
[351589087,1738651841353,-18734.95,0.000168,2]
[351589088,1738651841363,-500.0,0.00016849,2]
[351589089,1738651841372,-151.0,0.00016849,2]
[351589090,1738651841381,-500.0,0.00016849,2]
[351589091,1738651841390,-183.55572643,0.00016849,2]
[351589092,1738651841399,-151.0,0.00016849,2]
[351589093,1738651841409,-151.0,0.00016849,2]
[351589094,1738651841418,-547.92,0.00016849,2]
[351589095,1738651841427,-558.98,0.00016849,2]
[351589096,1738651841437,-500.0,0.00016849,2]
[351589097,1738651841446,-500.0,0.00016849,2]
[351589098,1738651841455,-1137.71,0.00016849,2]
[351589099,1738651841464,-1070.58,0.00016849,2]
[351589100,1738651841473,-500.0,0.00016849,2]
[351589101,1738651841483,-877.52,0.00016849,2]
[351589102,1738651841494,-500.0,0.00016849,2]
[351589103,1738651841503,-151.0,0.00016849,2]
[351589104,1738651841512,-500.0,0.00016849,2]
[351589105,1738651841521,-500.0,0.00016849,2]
[351589106,1738651841531,-573.58,0.00016849,2]
[351589107,1738651841540,-151.0,0.00016849,2]
[351589108,1738651841550,-500.0,0.00016849,2]
[351589109,1738651841559,-2613.03,0.00016849,2]
[351589110,1738651841568,-1669.29,0.00016849,2]
[351589111,1738651841578,-500.0,0.00016849,2]
[351589112,1738651841587,-1281.48,0.00016849,2]
[351589113,1738651841596,-600.39066318,0.00016849,2]
[351589114,1738651841606,-975.88,0.00016849,2]
[351589115,1738651841615,-500.0,0.00016849,2]
[351589116,1738651841624,-500.0,0.00016849,2]
[351589117,1738651841634,-500.0,0.00016849,2]
[351589118,1738651841643,-1619.08,0.00016849,2]
[351589119,1738651841652,-2528.3,0.00016849,2]
[351589120,1738651841662,-500.0,0.00016849,2]
[351589121,1738651841671,-5209.08,0.00016849,2]
[351589122,1738651841681,-1044.85,0.00016849,2]
[351589123,1738651841690,-487.2751254,0.00016849,2]
[351589124,1738651841699,-500.0,0.00016849,2]
[351589125,1738651841708,-1261.36,0.00016849,2]
[351589126,1738651841718,-151.0,0.00016849,2]
[351589127,1738651841727,-2551.57,0.00016849,2]
[351589128,1738651841736,-8194.32,0.00016849,2]
[351589129,1738651841747,-3818.88,0.00016849,2]
[351589130,1738651841756,-500.0,0.00016849,2]
[351589131,1738651841765,-526.4,0.00016849,2]
[351589132,1738651841774,-1537.3,0.00016849,2]
[351589133,1738651841784,-1271.55,0.00016849,2]
[351589134,1738651841793,-646.51,0.00016849,2]
[351589135,1738651841802,-9137.08,0.00016849,2]
[351589136,1738651841811,-596.01,0.00016849,2]
[351589137,1738651841821,-4111.97,0.00016849,2]
[351589138,1738651841830,-151.0,0.00016849,2]
[351589139,1738651841839,-1000.45,0.00016849,2]
[351589140,1738651841847,-500.0,0.00016849,2]
[351589141,1738651841857,-839.24,0.00016849,2]
[351589142,1738651841866,-931.7,0.00016849,2]
[351589143,1738651841875,-1163.46,0.00016849,2]
[351589144,1738651841884,-23370.66,0.00016849,2]
[351589145,1738651841893,-151.0,0.00016849,2]
[351589146,1738651841903,-500.0,0.00016849,2]
[351589147,1738651841912,-500.0,0.00016849,2]
[351589148,1738651841921,-1603.39,0.00016849,2]
[351589149,1738651841930,-500.0,0.00016849,2]
[351589150,1738651841939,-1346.33,0.00016849,2]
[351589151,1738651841949,-500.0,0.00016849,2]
[351589152,1738651841958,-7506.04,0.00016849,2]
[351589153,1738651841968,-500.0,0.00016849,2]
[351589154,1738651841977,-798.26,0.00016849,2]
[351589155,1738651841986,-500.0,0.00016849,2]
[351589156,1738651841997,-2370.99,0.00016849,2]
[351589157,1738651842006,-2913.7,0.00016849,2]
[351589158,1738651842016,-1726.05,0.00016849,2]
[351589159,1738651842025,-500.0,0.00016849,2]
[351589160,1738651842035,-1580.38,0.00016849,2]
[351589161,1738651842044,-2967.46,0.00016849,2]
[351589162,1738651842053,-599.86,0.00016849,2]
[351589163,1738651842062,-500.0,0.00016849,2]
[351589164,1738651842072,-500.0,0.00016849,2]
[351589165,1738651842081,-1636.2,0.00016849,2]
[351589166,1738651842095,-500.0,0.00016849,2]
[351589167,1738651842105,-1249.68,0.00016849,2]
[351589168,1738651842115,-1498.93,0.00016849,2]
[351589169,1738651842124,-500.0,0.00016849,2]
[351589170,1738651842134,-1182.05,0.00016849,2]
[351589171,1738651842143,-500.0,0.00016849,2]
[351589172,1738651842152,-500.0,0.00016849,2]
[351589173,1738651842161,-528.02,0.00016849,2]
[351589174,1738651842171,-500.0,0.00016849,2]
[351589175,1738651842182,-500.0,0.00016849,2]
[351589176,1738651842191,-245.05647,0.0001685,2]
[351589177,1738651842200,-2547.95,0.000169,2]
[351589178,1738651842209,-500.0,0.00016986,2]
[351589179,1738651842219,-151.0,0.00016986,2]
[351589180,1738651842228,-151.346963,0.00016986,2]
[351589181,1738651842237,-151.0,0.00016986,2]
[351589182,1738651842248,-500.0,0.00016986,2]
[351589183,1738651842257,-547.92,0.00016986,2]
[351589184,1738651842267,-558.98,0.00016986,2]
[351589185,1738651842276,-500.0,0.00016986,2]
[351589186,1738651842285,-500.0,0.00016986,2]
[351589187,1738651842295,-1137.71,0.00016986,2]
[351589188,1738651842304,-1070.58,0.00016986,2]
[351589189,1738651842313,-500.0,0.00016986,2]
[351589190,1738651842322,-877.52,0.00016986,2]
[351589191,1738651842331,-500.0,0.00016986,2]
[351589192,1738651842341,-151.0,0.00016986,2]
[351589193,1738651842350,-500.0,0.00016986,2]
[351589194,1738651842359,-500.0,0.00016986,2]
[351589195,1738651842368,-573.58,0.00016986,2]
[351589196,1738651842378,-500.0,0.00016986,2]
[351589197,1738651842387,-2613.03,0.00016986,2]
[351589198,1738651842396,-1669.29,0.00016986,2]
[351589199,1738651842405,-500.0,0.00016986,2]
[351589200,1738651842414,-1281.48,0.00016986,2]
[351589201,1738651842423,-975.88,0.00016986,2]
[351589202,1738651842432,-500.0,0.00016986,2]
[351589203,1738651842441,-500.0,0.00016986,2]
[351589204,1738651842451,-500.0,0.00016986,2]
[351589205,1738651842460,-1619.08,0.00016986,2]
[351589206,1738651842469,-2528.3,0.00016986,2]
[351589207,1738651842478,-500.0,0.00016986,2]
[351589208,1738651842487,-5209.08,0.00016986,2]
[351589209,1738651842498,-1044.85,0.00016986,2]
[351589210,1738651842508,-500.0,0.00016986,2]
[351589211,1738651842517,-1261.36,0.00016986,2]
[351589212,1738651842526,-151.0,0.00016986,2]
[351589213,1738651842535,-2551.57,0.00016986,2]
[351589214,1738651842544,-8194.32,0.00016986,2]
[351589215,1738651842554,-3818.88,0.00016986,2]
[351589216,1738651842563,-500.0,0.00016986,2]
[351589217,1738651842572,-526.4,0.00016986,2]
[351589218,1738651842581,-1537.3,0.00016986,2]
[351589219,1738651842590,-1271.55,0.00016986,2]
[351589220,1738651842599,-646.51,0.00016986,2]
[351589221,1738651842608,-9137.08,0.00016986,2]
[351589222,1738651842617,-596.01,0.00016986,2]
[351589223,1738651842626,-4111.97,0.00016986,2]
[351589224,1738651842635,-1000.45,0.00016986,2]
[351589225,1738651842644,-500.0,0.00016986,2]
[351589226,1738651842653,-839.24,0.00016986,2]
[351589227,1738651842662,-931.7,0.00016986,2]
[351589228,1738651842671,-1163.46,0.00016986,2]
[351589229,1738651842681,-252.925463,0.00016986,2]
[351589230,1738651842690,-23370.66,0.00016986,2]
[351589231,1738651842700,-500.0,0.00016986,2]
[351589232,1738651842709,-1603.39,0.00016986,2]
[351589233,1738651842718,-500.0,0.00016986,2]
[351589234,1738651842727,-1346.33,0.00016986,2]
[351589235,1738651842736,-500.0,0.00016986,2]
[351589236,1738651842746,-7506.04,0.00016986,2]
[351589237,1738651842755,-500.0,0.00016986,2]
[351589238,1738651842764,-798.26,0.00016986,2]
[351589239,1738651842773,-340.85335333,0.00016986,2]
[351589240,1738651842783,-2370.99,0.00016986,2]
[351589241,1738651842793,-2913.7,0.00016986,2]
[351589242,1738651842802,-603.30076368,0.00016986,2]
[351589243,1738651842915,-1122.74923632,0.00016986,2]
[351589244,1738651842924,-500.0,0.00016986,2]
[351589245,1738651842934,-1580.38,0.00016986,2]
[351589246,1738651842943,-2967.46,0.00016986,2]
[351589247,1738651842953,-599.86,0.00016986,2]
[351589248,1738651842962,-500.0,0.00016986,2]
[351589249,1738651842971,-500.0,0.00016986,2]
[351589250,1738651842980,-1636.2,0.00016986,2]
[351589251,1738651842990,-261.35785433,0.00016986,2]
[351589252,1738651842999,-1249.68,0.00016986,2]
[351589253,1738651843009,-500.0,0.00016986,2]
[351589254,1738651843018,-1498.93,0.00016986,2]
[351589255,1738651843027,-1182.05,0.00016986,2]
[351589256,1738651843036,-500.0,0.00016986,2]
[351589257,1738651843045,-500.0,0.00016986,2]
[351589258,1738651843055,-528.02,0.00016986,2]
[351589259,1738651843064,-500.0,0.00016986,2]
[351589260,1738651843073,-382.32547959,0.00016986,2]
[351589261,1738651843083,-500.0,0.00016986,2]
[351589262,1738651843092,-151.0,0.00017,2]
[351589263,1738651843103,-1801.86140394,0.00017,2]
[351589264,1738651843112,-190.0,0.00017,7]
[351589265,1738651843121,-771.87967296,0.00017007,2]
[351589266,1738651843131,-301.86953056,0.0001702,2]
[351589267,1738651843140,-500.0,0.0001702,2]
[351589268,1738651843150,-445.088,0.00017021,2]
[351589269,1738651843159,-363.12132731,0.0001706,2]
[351589270,1738651843168,-500.0,0.00017073,2]
[351589271,1738651843178,-500.0,0.00017073,2]
[351589272,1738651843187,-500.0,0.00017073,2]
[351589273,1738651843197,-500.0,0.00017073,2]
[351589275,1738651843207,-631.88861602,0.00017073,2]
[351589278,1738651843216,-500.0,0.00017073,2]
[351589280,1738651843226,-500.0,0.00017099,2]
[351589281,1738651843235,-183.58233569,0.00017099,2]
[351589282,1738651843246,-500.0,0.00017099,2]
[351589284,1738651843256,-500.0,0.00017099,2]
[351589286,1738651843265,-566.08641057,0.00017099,2]
[351589287,1738651843275,-500.0,0.00017099,2]
[351589288,1738651843284,-500.0,0.00017099,2]
[351589289,1738651843293,-30903.24418339,0.000171,5]
[351589290,1738651843303,-1952.38904014,0.000171,5]
[351589291,1738651843312,-65216.50336293,0.000171,15]
[351589303,1738651843721,-248.318,0.00016592,2]
[351589305,1738651843732,-2782654.57436906,0.000171,15]
[351589307,1738651843743,-14771.45,0.000171,2]
[351589309,1738651843753,-151.0,0.000171,2]
[351589311,1738651843762,-1078.0,0.000171,6]
[351589313,1738651843771,-151.0,0.000171,2]
[351589315,1738651843781,-151.0,0.000171,2]
[351589317,1738651843790,-151.0,0.000171,2]
[351589319,1738651843800,-1801.86140392,0.000171,2]
[351589321,1738651843810,-151.0,0.000171,2]
[351589323,1738651843819,-500.0,0.00017104,2]
[351589325,1738651843828,-1200.0,0.00017104,2]
[351589327,1738651843838,-151.0,0.00017104,2]
[351589329,1738651843847,-249.23,0.00017106,2]
[351589343,1738651843962,-151.0,0.00017123,2]
[351589345,1738651843972,-500.0,0.00017123,2]
[351589347,1738651843982,-151.0,0.00017123,2]
[351589349,1738651843993,-151.0,0.00017123,2]
[351589351,1738651844003,-500.0,0.00017123,2]
[351589353,1738651844012,-547.92,0.00017123,2]
[351589355,1738651844022,-558.98,0.00017123,2]
[351589357,1738651844031,-500.0,0.00017123,2]
[351589359,1738651844040,-500.0,0.00017123,2]
[351589361,1738651844050,-1137.71,0.00017123,2]
[351589363,1738651844059,-1070.58,0.00017123,2]
[351589365,1738651844068,-500.0,0.00017123,2]
[351589367,1738651844078,-877.52,0.00017123,2]
[351589369,1738651844087,-500.0,0.00017123,2]
[351589371,1738651844097,-151.0,0.00017123,2]
[351589373,1738651844109,-500.0,0.00017123,2]
[351589375,1738651844118,-500.0,0.00017123,2]
[351589377,1738651844127,-573.58,0.00017123,2]
[351589379,1738651844138,-410.3813043,0.00017123,2]
[351589381,1738651844148,-500.0,0.00017123,2]
[351589383,1738651844158,-2613.03,0.00017123,2]
[351589385,1738651844167,-1669.29,0.00017123,2]
[351589387,1738651844177,-500.0,0.00017123,2]
[351589388,1738651844187,-1281.48,0.00017123,2]
[351589390,1738651844197,-975.88,0.00017123,2]
[351589392,1738651844207,-500.0,0.00017123,2]
[351589395,1738651844217,-500.0,0.00017123,2]
[351589397,1738651844228,-1619.08,0.00017123,2]
[351589399,1738651844238,-2528.3,0.00017123,2]
[351589401,1738651844251,-500.0,0.00017123,2]
[351589403,1738651844261,-5209.08,0.00017123,2]
[351589405,1738651844271,-1044.85,0.00017123,2]
[351589407,1738651844281,-500.0,0.00017123,2]
[351589409,1738651844291,-1261.36,0.00017123,2]
[351589411,1738651844301,-265.318368,0.00017123,2]
[351589413,1738651844311,-2551.57,0.00017123,2]
[351589415,1738651844320,-8194.32,0.00017123,2]
[351589417,1738651844330,-3818.88,0.00017123,2]
[351589419,1738651844340,-544.25409058,0.00017123,2]
[351589421,1738651844349,-526.4,0.00017123,2]
[351589423,1738651844359,-500.0,0.00017123,2]
[351589425,1738651844369,-1537.3,0.00017123,2]
[351589427,1738651844381,-500.0,0.00017123,2]
[351589429,1738651844390,-1271.55,0.00017123,2]
[351589431,1738651844399,-646.51,0.00017123,2]
[351589433,1738651844409,-9137.08,0.00017123,2]
[351589435,1738651844419,-596.01,0.00017123,2]
[351589437,1738651844428,-4111.97,0.00017123,2]
[351589439,1738651844437,-1000.45,0.00017123,2]
[351589440,1738651844446,-500.0,0.00017123,2]
[351589443,1738651844456,-839.24,0.00017123,2]
[351589445,1738651844465,-931.7,0.00017123,2]
[351589447,1738651844475,-500.0,0.00017123,2]
[351589449,1738651844484,-572.0,0.00017123,2]
[351589450,1738651844494,-1163.46,0.00017123,2]
[351589452,1738651844504,-500.0,0.00017123,2]
[351589455,1738651844514,-23370.66,0.00017123,2]
[351589456,1738651844523,-196.35672134,0.00017123,2]
[351589458,1738651844532,-1603.39,0.00017123,2]
[351589460,1738651844543,-500.0,0.00017123,2]
[351589462,1738651844552,-1346.33,0.00017123,2]
[351589464,1738651844561,-500.0,0.00017123,2]
[351589467,1738651844571,-7506.04,0.00017123,2]
[351589468,1738651844581,-500.0,0.00017123,2]
[351589470,1738651844591,-798.26,0.00017123,2]
[351589473,1738651844600,-2370.99,0.00017123,2]
[351589475,1738651844610,-2913.7,0.00017123,2]
[351589476,1738651844619,-1726.05,0.00017123,2]
[351589479,1738651844629,-517.80034126,0.00017123,2]
[351589481,1738651844639,-1580.38,0.00017123,2]
[351589482,1738651844648,-2967.46,0.00017123,2]
[351589485,1738651844658,-599.86,0.00017123,2]
[351589486,1738651844667,-500.0,0.00017123,2]
[351589489,1738651844677,-500.0,0.00017123,2]
[351589490,1738651844687,-1636.2,0.00017123,2]
[351589491,1738651844696,-1249.68,0.00017123,2]
[351589492,1738651844706,-500.0,0.00017123,2]
[351589493,1738651844715,-1498.93,0.00017123,2]
[351589494,1738651844725,-1182.05,0.00017123,2]
[351589495,1738651844734,-500.0,0.00017123,2]
[351589496,1738651844744,-500.0,0.00017123,2]
[351589497,1738651844753,-528.02,0.00017123,2]
[351589498,1738651844763,-500.0,0.00017123,2]
[351589499,1738651844772,-289.843502,0.000172,2]
[351589500,1738651844781,-1801.86140392,0.000172,2]
[351589501,1738651844792,-2500.0,0.00017207,2]
[351589502,1738651844801,-2500.0,0.00017216,2]
[351589503,1738651844811,-500.0,0.0001722,2]
[351589504,1738651844821,-2500.0,0.00017225,2]
[351589505,1738651844831,-771.87967296,0.00017231,2]
[351589506,1738651844841,-160.0,0.00017232,6]
[351589507,1738651844850,-2500.0,0.00017234,2]
[351589508,1738651844859,-2500.0,0.00017242,2]
[351589510,1738651844868,-2500.0,0.00017251,2]
[351589512,1738651844878,-2500.0,0.0001726,2]
[351589514,1738651844888,-2500.0,0.0001726,2]
[351589517,1738651844898,-151.0,0.0001726,2]
[351589518,1738651844907,-500.0,0.0001726,2]
[351589520,1738651844918,-151.0,0.0001726,2]
[351589522,1738651844927,-151.0,0.0001726,2]
[351589524,1738651844937,-170.56712256,0.0001726,2]
[351589527,1738651844948,-547.92,0.0001726,2]
[351589528,1738651844958,-558.98,0.0001726,2]
[351589531,1738651844968,-500.0,0.0001726,2]
[351589532,1738651844978,-500.0,0.0001726,2]
[351589534,1738651844988,-1137.71,0.0001726,2]
[351589537,1738651844999,-1070.58,0.0001726,2]
[351589539,1738651845009,-500.0,0.0001726,2]
[351589540,1738651845019,-877.52,0.0001726,2]
[351589543,1738651845028,-500.0,0.0001726,2]
[351589545,1738651845038,-151.0,0.0001726,2]
[351589547,1738651845047,-167.43009837,0.0001726,2]
[351589549,1738651845057,-500.0,0.0001726,2]
[351589551,1738651845067,-573.58,0.0001726,2]
[351589553,1738651845077,-2613.03,0.0001726,2]
[351589555,1738651845087,-1669.29,0.0001726,2]
[351589556,1738651845097,-500.0,0.0001726,2]
[351589558,1738651845109,-1281.48,0.0001726,2]
[351589561,1738651845120,-975.88,0.0001726,2]
[351589563,1738651845131,-500.0,0.0001726,2]
[351589564,1738651845140,-500.0,0.0001726,2]
[351589567,1738651845152,-1619.08,0.0001726,2]
[351589568,1738651845162,-2528.3,0.0001726,2]
[351589570,1738651845173,-500.0,0.0001726,2]
[351589573,1738651845184,-5209.08,0.0001726,2]
[351589575,1738651845194,-1044.85,0.0001726,2]
[351589577,1738651845205,-500.0,0.0001726,2]
[351589579,1738651845216,-1261.36,0.0001726,2]
[351589581,1738651845226,-2551.57,0.0001726,2]
[351589583,1738651845236,-8194.32,0.0001726,2]
[351589585,1738651845248,-3818.88,0.0001726,2]
[351589587,1738651845257,-526.4,0.0001726,2]
[351589589,1738651845267,-1537.3,0.0001726,2]
[351589591,1738651845277,-1271.55,0.0001726,2]
[351589593,1738651845286,-646.51,0.0001726,2]
[351589595,1738651845296,-9137.08,0.0001726,2]
[351589597,1738651845306,-596.01,0.0001726,2]
[351589599,1738651845316,-4111.97,0.0001726,2]
[351589601,1738651845326,-1000.45,0.0001726,2]
[351589603,1738651845335,-500.0,0.0001726,2]
[351589605,1738651845345,-839.24,0.0001726,2]
[351589607,1738651845355,-931.7,0.0001726,2]
[351589609,1738651845365,-1163.46,0.0001726,2]
[351589611,1738651845374,-23370.66,0.0001726,2]
[351589613,1738651845383,-1603.39,0.0001726,2]
[351589615,1738651845393,-500.0,0.0001726,2]
[351589617,1738651845402,-1346.33,0.0001726,2]
[351589619,1738651845412,-500.0,0.0001726,2]
[351589621,1738651845421,-7506.04,0.0001726,2]
[351589623,1738651845431,-500.0,0.0001726,2]
[351589625,1738651845440,-798.26,0.0001726,2]
[351589627,1738651845450,-2370.99,0.0001726,2]
[351589629,1738651845459,-2913.7,0.0001726,2]
[351589631,1738651845469,-1726.05,0.0001726,2]
[351589633,1738651845480,-1580.38,0.0001726,2]
[351589635,1738651845489,-2967.46,0.0001726,2]
[351589637,1738651845500,-599.86,0.0001726,2]
[351589639,1738651845510,-500.0,0.0001726,2]
[351589641,1738651845520,-500.0,0.0001726,2]
[351589643,1738651845529,-1636.2,0.0001726,2]
[351589645,1738651845539,-1249.68,0.0001726,2]
[351589647,1738651845548,-500.0,0.0001726,2]
[351589649,1738651845558,-1498.93,0.0001726,2]
[351589651,1738651845567,-1182.05,0.0001726,2]
[351589653,1738651845577,-500.0,0.0001726,2]
[351589655,1738651845587,-274.36989499,0.0001726,2]
[351589657,1738651845596,-528.02,0.0001726,2]
[351589659,1738651845606,-500.0,0.0001726,2]
[351589661,1738651845615,-500.0,0.00017273,2]
[351589663,1738651845624,-500.63344191,0.00017273,2]
[351589665,1738651845633,-504.91411847,0.00017273,2]
[351589667,1738651845643,-500.0,0.00017273,2]
[351589669,1738651845652,-500.96871249,0.00017273,2]
[351589671,1738651845662,-162.954761,0.0001728,15]
[351589673,1738651845672,-124742.01411062,0.00017299,2]
[351589675,1738651845682,-151.0,0.00017299,2]
[351589677,1738651845691,-151.0,0.00017299,2]
[351589679,1738651845701,-151.0,0.00017299,2]
[351589681,1738651845710,-172.22149,0.00017299,2]
[351589683,1738651845719,-151.0,0.00017299,2]
[351589685,1738651845728,-682825.69131036,0.000173,15]
[351589687,1738651845737,-151.0,0.000173,2]
[351589689,1738651845750,-151.0,0.000173,2]
[351589691,1738651845761,-151.0,0.000173,2]
[351589693,1738651845770,-151.0,0.000173,2]
[351589695,1738651845780,-1801.86140392,0.000173,2]
[351589697,1738651845790,-500.0,0.00017397,2]
[351589699,1738651845799,-500.0,0.00017397,2]
[351589701,1738651845809,-986.09966323,0.00017397,2]
[351589703,1738651845819,-500.0,0.00017397,2]
[351589705,1738651845828,-572.0,0.00017397,2]
[351589707,1738651845837,-500.0,0.00017397,2]
[351589709,1738651845846,-151.0,0.00017397,2]
[351589711,1738651845855,-151.0,0.00017397,2]
[351589713,1738651845865,-500.0,0.00017397,2]
[351589715,1738651845876,-151.0,0.00017397,2]
[351589717,1738651845886,-547.92,0.00017397,2]
[351589719,1738651845896,-558.98,0.00017397,2]
[351589721,1738651845905,-500.0,0.00017397,2]
[351589723,1738651845915,-500.0,0.00017397,2]
[351589725,1738651845924,-1137.71,0.00017397,2]
[351589727,1738651845934,-1070.58,0.00017397,2]
[351589729,1738651845944,-500.0,0.00017397,2]
[351589731,1738651845953,-877.52,0.00017397,2]
[351589733,1738651845963,-500.0,0.00017397,2]
[351589735,1738651845972,-500.0,0.00017397,2]
[351589737,1738651845981,-573.58,0.00017397,2]
[351589739,1738651845991,-2613.03,0.00017397,2]
[351589741,1738651846003,-1669.29,0.00017397,2]
[351589743,1738651846013,-500.0,0.00017397,2]
[351589745,1738651846023,-1281.48,0.00017397,2]
[351589747,1738651846032,-975.88,0.00017397,2]
[351589749,1738651846042,-500.0,0.00017397,2]
[351589751,1738651846052,-500.0,0.00017397,2]
[351589754,1738651846062,-1619.08,0.00017397,2]
[351589755,1738651846072,-2528.3,0.00017397,2]
[351589758,1738651846082,-500.0,0.00017397,2]
[351589760,1738651846093,-5209.08,0.00017397,2]
[351589761,1738651846106,-1044.85,0.00017397,2]
[351589763,1738651846116,-500.0,0.00017397,2]
[351589766,1738651846127,-1261.36,0.00017397,2]
[351589767,1738651846138,-2551.57,0.00017397,2]
[351589769,1738651846148,-8194.32,0.00017397,2]
[351589772,1738651846158,-3818.88,0.00017397,2]
[351589773,1738651846168,-526.4,0.00017397,2]
[351589776,1738651846179,-1537.3,0.00017397,2]
[351589777,1738651846189,-1271.55,0.00017397,2]
[351589779,1738651846199,-646.51,0.00017397,2]
[351589782,1738651846209,-9137.08,0.00017397,2]
[351589783,1738651846219,-596.01,0.00017397,2]
[351589785,1738651846229,-4111.97,0.00017397,2]
[351589787,1738651846238,-1000.45,0.00017397,2]
[351589789,1738651846250,-500.0,0.00017397,2]
[351589791,1738651846259,-839.24,0.00017397,2]
[351589793,1738651846270,-931.7,0.00017397,2]